bitfinex/quotes_SOLUSD_20240725
["timestamp","ask_amount","ask_price","bid_price","bid_amount"]
[1721871155067,1.82604014,172.91,172.78,1.15686147]
[1721871155276,1.82604014,172.91,172.79,20.0]
[1721871155582,1.82604014,172.91,172.8,1.15657795]
[1721871157372,0.95958472,172.9,172.77,6.5124]
[1721871157573,2.78562486,172.89,172.77,7.66943913]
[1721871157908,1.82604014,172.88,172.77,7.66943913]
[1721871158596,6.1171305,172.93,172.78,20.0]
[1721871158597,0.3343305,172.93,172.78,20.0]
[1721871158773,0.3343305,172.93,172.82,2.0323]
[1721871158952,0.3343305,172.93,172.83,1.15648845]
[1721871159566,0.3343305,172.93,172.83,21.15648845]
[1721871159768,0.3343305,172.93,172.84,45.0]
[1721871160089,0.3343305,172.93,172.85,1.15648806]
[1721871160283,0.3343305,172.93,172.86,1.15648795]
[1721871162385,0.3343305,172.93,172.83,20.0]
[1721871162597,0.3343305,172.93,172.82,3.18876164]
[1721871162598,0.3343305,172.93,172.82,2.0323]
[1721871162797,0.3343305,172.93,172.83,1.15688088]
[1721871163188,0.3343305,172.93,172.82,2.0323]
[1721871163504,0.3343305,172.93,172.77,6.5124]
[1721871163505,5.7844,172.88,172.77,6.5124]
[1721871163705,5.7838,172.9,172.77,7.66946589]
[1721871163877,5.7834,172.91,172.77,7.66946589]
[1721871164078,1.29391522,172.93,172.77,7.66946589]
[1721871164079,5.783,172.92,172.77,7.66946589]
[1721871164276,0.3343305,172.93,172.77,7.66946589]
[1721871164804,1.29391522,172.93,172.77,7.66946589]
[1721871165016,5.7849,172.87,172.77,6.5124]
[1721871165292,0.95958472,172.92,172.78,1.1572236]
[1721871165479,0.95958472,172.92,172.77,6.5124]
[1721871165889,0.3343305,172.93,172.78,1.15709739]
[1721871166818,0.3343305,172.93,172.78,46.15709739]
[1721871167490,0.3343305,172.93,172.78,1.15709739]
[1721871167805,0.3343305,172.93,172.79,20.0]
[1721871168101,0.3343305,172.93,172.8,46.15664841]
[1721871168306,6.1170305,172.93,172.8,1.15664841]
[1721871168704,0.3343305,172.93,172.8,1.15664841]
[1721871168905,0.3343305,172.93,172.8,21.15664841]
[1721871169094,0.3343305,172.93,172.81,45.0]
[1721871169297,0.3343305,172.93,172.82,41.15658851]
[1721871169500,0.3343305,172.93,172.83,45.0]
[1721871169697,0.3343305,172.93,172.84,1.15643188]
[1721871169890,0.3343305,172.93,172.84,21.15643188]
[1721871170109,0.3343305,172.93,172.85,45.0]
[1721871170301,0.3343305,172.93,172.86,1.15646366]
[1721871170698,0.3343305,172.93,172.84,20.0]
[1721871171015,6.00834468,173.05,172.88,35.5081]
[1721871171227,0.7702475,173.1,172.88,35.5081]
[1721871171228,1.72983222,173.1,172.89,21.15601533]
[1721871171517,16.17273222,173.1,172.9,46.15584236]
[1721871171820,17.41,173.07,172.91,20.0]
[1721871172021,5.7801,173.01,172.91,1.15602212]
[1721871172340,5.7797,173.02,172.91,1.15602212]
[1721871172626,17.41,173.07,172.91,1.15602212]
[1721871172826,0.7702475,173.1,172.91,1.15602212]
[1721871172827,5.7776,173.09,172.91,1.15602212]
[1721871173125,0.7702475,173.1,172.92,20.0]
[1721871173330,0.7702475,173.1,172.93,66.15566857]
[1721871173615,6.5472475,173.1,172.93,66.15566857]
[1721871173820,18.1802475,173.1,172.93,66.15566857]
[1721871174034,5.7777,173.08,172.93,66.15566857]
[1721871174528,18.1802475,173.1,172.93,66.15566857]
[1721871174727,0.95958472,173.09,172.93,66.15566857]
[1721871175114,6.5475475,173.1,172.93,66.15566857]
[1721871175433,23.9575475,173.1,172.93,66.15566857]
[1721871175832,6.5475475,173.1,172.93,66.15566857]
[1721871175998,0.7702475,173.1,172.94,20.0]
[1721871176199,0.7702475,173.1,172.95,66.15564473]
[1721871176396,0.7702475,173.1,172.96,1.15564853]
[1721871176624,6.5473475,173.1,172.96,1.15564853]
[1721871176810,0.7702475,173.1,172.96,1.15564853]
[1721871177017,6.5473475,173.1,172.96,1.15564853]
[1721871177195,0.7702475,173.1,172.96,1.15564853]
[1721871177401,0.7702475,173.1,172.97,6.2811]
[1721871177624,0.7702475,173.1,172.98,21.15554147]
[1721871177839,0.7702475,173.1,172.99,46.15559322]
[1721871178345,0.7702475,173.1,173.0,20.0]
[1721871178631,0.7702475,173.1,173.01,46.15540435]
[1721871178940,0.7702475,173.1,173.02,21.15535042]
[1721871179237,0.7702475,173.1,173.02,37.14925042]
[1721871179434,0.7702475,173.1,173.03,45.0]
[1721871179618,0.7702475,173.1,173.04,1.15513143]
[1721871179932,0.7702475,173.1,173.05,1.15515171]
[1721871180541,5.7729,173.23,173.06,1.15514405]
[1721871180837,5.7731,173.22,173.06,66.15514405]
[1721871181055,0.95958472,173.21,173.06,66.15514405]
[1721871181224,0.95958472,173.24,173.06,66.15514405]
[1721871181535,5.7742,173.19,173.06,21.15514405]
[1721871181839,17.41,173.18,173.02,15.9939]
[1721871182039,39.87,173.24,173.02,15.9939]
[1721871182040,5.7765,173.12,173.02,15.9939]
[1721871182337,17.41,173.18,173.02,17.1493015]
[1721871182540,0.95958472,173.17,173.02,15.9939]
[1721871182836,17.41,173.14,172.99,1.1557575]
[1721871183022,14.4386,173.15,172.97,7.43690861]
[1721871183023,17.41,173.12,172.97,7.43690861]
[1721871183220,14.4428,173.1,172.97,6.2811]
[1721871183425,5.7793,173.03,172.97,6.2811]
[1721871183638,18.36958472,173.09,172.9,7.50317188]
[1721871183837,17.41,173.05,172.9,7.50317188]
[1721871184043,5.7776,173.09,172.91,1.15589388]
[1721871184238,17.21948472,173.15,172.94,20.0]
[1721871184418,0.95958472,173.14,172.95,1.15554721]
[1721871184737,5.7777,173.08,172.96,1.15577468]
[1721871184924,5.7773,173.1,172.96,1.15577468]
[1721871185124,0.95958472,173.14,172.96,1.15577468]
[1721871185324,5.7766,173.12,172.96,1.15577468]
[1721871185519,5.777,173.1,172.96,1.15577468]
[1721871185719,5.777,173.1,172.96,46.15577468]
[1721871185927,5.777,173.1,172.97,20.0]
[1721871186119,5.7765,173.12,172.98,46.15557222]
[1721871186318,18.36958472,173.14,172.99,1.15557136]
[1721871186520,5.777,173.1,172.99,1.15557136]
[1721871186743,18.36958472,173.14,172.99,1.15557136]
[1721871186951,17.41,173.14,172.99,1.15557136]
[1721871187252,18.36958472,173.14,172.99,21.15557136]
[1721871187417,18.36958472,173.14,172.98,45.0]
[1721871187418,18.36958472,173.14,172.98,46.15553237]
[1721871187620,18.36958472,173.14,172.97,20.0]
[1721871187621,18.36958472,173.14,172.97,21.15561148]
[1721871187927,18.36958472,173.14,172.97,1.15561148]
[1721871188124,18.36958472,173.14,172.98,1.15564168]
[1721871188323,17.41,173.16,172.98,21.15564168]
[1721871188528,39.87,173.09,173.0,20.0]
[1721871188726,39.87,173.09,172.9,1.15601498]
[1721871188727,5.783,172.92,172.9,1.15601498]
[1721871189039,0.95958472,173.08,172.89,17.13807892]
[1721871189040,0.95958472,173.08,172.89,18.29445771]
[1721871189218,0.95958472,173.09,172.9,1.15606981]
[1721871189416,39.87,173.14,172.91,20.0]
[1721871189617,18.36958472,173.13,172.92,1.1556882]
[1721871189838,6.6022,173.17,172.96,20.0]
[1721871190036,54.3052,173.19,172.98,6.4381]
[1721871190240,5.7746,173.18,172.99,1.15537681]
[1721871190542,14.4314,173.24,172.99,46.15537681]
[1721871190543,0.95958472,173.17,172.99,46.15537681]
[1721871190725,0.95958472,173.17,173.0,20.0]
[1721871190921,18.36958472,173.17,172.99,45.0]
[1721871191152,18.36958472,173.17,172.99,46.15552483]
[1721871191626,43.49475123,173.22,172.99,46.15552483]
[1721871191627,17.41,173.15,172.99,46.15552483]
[1721871191823,0.95958472,173.14,172.99,1.15551371]
[1721871192021,57.28,173.17,172.99,1.15551371]
[1721871192022,39.87,173.17,172.99,41.15551371]
[1721871192223,5.7747,173.17,172.99,21.15551371]
[1721871192436,0.95958472,173.17,172.99,21.15551371]
[1721871192629,5.7743,173.18,172.99,41.15551371]
[1721871192833,17.41,173.28,173.07,20.0]
[1721871193043,17.41,173.31,173.09,26.1104]
[1721871193237,5.7711,173.28,173.11,20.0]
[1721871193431,5.7711,173.28,173.12,66.15445965]
[1721871193640,39.87,173.34,173.13,20.0]
[1721871193946,5.7694,173.33,173.15,20.0]
[1721871194142,5.7701,173.31,173.16,46.15423036]
[1721871194442,5.7699,173.32,173.17,65.0]
[1721871194642,5.7692,173.34,173.18,1.15430676]
[1721871194945,5.7674,173.39,173.22,20.0]
[1721871195131,17.41,173.42,173.23,66.15376678]
[1721871195445,5.7677,173.38,173.24,1.15377421]
[1721871195624,6.2674,173.47,173.24,21.15377421]
[1721871195825,6.2674,173.47,173.25,65.0]
[1721871196050,0.95958472,173.46,173.26,1.15360708]
[1721871196221,6.2674,173.47,173.27,1.15354606]
[1721871196222,5.7662,173.43,173.27,1.15354606]
[1721871196427,5.7664,173.42,173.27,1.15354606]
[1721871196623,22.49194322,173.48,173.27,1.15354606]
[1721871196934,5.7627,173.53,173.33,20.0]
[1721871197247,5.7652,173.46,173.34,1.15287541]
[1721871197454,5.7645,173.48,173.34,1.15287541]
[1721871197826,0.95958472,173.51,173.31,1.153226]
[1721871197827,5.7662,173.43,173.31,1.153226]
[1721871198029,5.7664,173.42,173.31,1.153226]
[1721871198333,1.72983222,173.44,173.31,1.153226]
[1721871198334,0.7702475,173.44,173.31,1.153226]
[1721871198542,0.95958472,173.42,173.28,6.583]
[1721871198743,5.7701,173.31,173.23,1.1536985]
[1721871198935,57.28,173.41,173.21,16.78443153]
[1721871199247,57.28,173.41,173.21,1.15416111]
[1721871199248,60.37768472,173.4,173.21,1.15416111]
[1721871199447,0.95958472,173.39,173.21,1.15416111]
[1721871199851,5.7663,173.42,173.25,20.0]
[1721871200155,0.7702475,173.44,173.26,21.15350128]
[1721871200348,0.7702475,173.44,173.29,20.0]
[1721871200554,1.72983222,173.44,173.3,1.15331236]
[1721871200854,0.7702475,173.44,173.28,1.15348079]
[1721871201235,5.766,173.43,173.28,21.15348079]
[1721871201442,5.7664,173.42,173.29,45.0]
[1721871201740,5.7661,173.43,173.3,1.15346732]
[1721871202138,0.7702475,173.44,173.3,1.15346732]
[1721871202340,0.7702475,173.44,173.28,21.1533907]
[1721871202540,0.7702475,173.44,173.28,1.1533907]
[1721871202745,5.7664,173.42,173.24,20.0]
[1721871202947,0.7702475,173.44,173.25,1.15339362]
[1721871203354,5.7664,173.42,173.25,1.15339362]
[1721871203660,5.7662,173.43,173.25,1.15339362]
[1721871203847,5.7664,173.42,173.25,46.15339362]
[1721871204051,0.7702475,173.44,173.25,46.15339362]
[1721871204052,5.7667,173.41,173.25,46.15339362]
[1721871204355,0.7702475,173.44,173.28,35.752]
[1721871204534,0.7702475,173.44,173.29,66.15328585]
[1721871204735,0.7702475,173.44,173.3,1.15328667]
[1721871204947,6.5359475,173.44,173.3,1.15328667]
[1721871205140,0.7702475,173.44,173.3,1.15328667]
[1721871206150,6.5360475,173.44,173.3,1.15328667]
[1721871206358,0.7702475,173.44,173.31,6.421]
[1721871206569,5.7667,173.41,173.32,1.15338769]
[1721871206858,0.7702475,173.44,173.33,1.15350678]
[1721871207556,6.5359475,173.44,173.33,1.15350678]
[1721871208056,6.5359475,173.44,173.31,6.421]
[1721871208057,6.72558472,173.43,173.31,7.57428744]
[1721871208261,5.7676,173.39,173.31,6.421]
[1721871208439,1.72983222,173.44,173.32,1.15360367]
[1721871208640,6.5360475,173.44,173.33,1.15341365]
[1721871208835,5.7662,173.43,173.31,7.57429283]
[1721871209143,0.7702475,173.44,173.31,7.57429283]
[1721871209654,5.7677,173.38,173.31,6.421]
[1721871209861,5.7682,173.37,173.25,6.5538]
[1721871210041,15.1848475,173.44,173.26,1.15382256]
[1721871210241,5.7682,173.37,173.26,1.15382256]
[1721871210654,0.95958472,173.36,173.25,6.5538]
[1721871210943,0.95958472,173.35,173.25,6.5538]
[1721871211267,0.95958472,173.35,173.18,6.5279]
[1721871211562,5.7716,173.26,173.18,6.5279]
[1721871212065,0.95958472,173.28,173.18,6.5279]
[1721871212357,5.7718,173.26,173.18,6.5279]
[1721871212562,0.95958472,173.32,173.19,1.15451889]
[1721871212761,0.95958472,173.35,173.19,1.15451889]
[1721871212946,0.95958472,173.35,173.18,6.5279]
[1721871212947,0.95958472,173.32,173.18,6.5279]
[1721871213146,0.95958472,173.32,173.14,16.4706]
[1721871213147,5.7723,173.24,173.14,16.4706]
[1721871213366,14.4264,173.3,173.12,7.47466351]
[1721871213544,5.7719,173.26,173.12,7.47466351]
[1721871213745,5.7715,173.27,173.12,7.47466351]
[1721871214064,0.95958472,173.26,173.12,7.47466351]
[1721871214376,0.95958472,173.26,173.12,6.32]
[1721871214563,5.7725,173.24,173.12,6.32]
[1721871214942,0.95958472,173.3,173.13,1.15482355]
[1721871215564,14.4244,173.32,173.13,1.15482355]
[1721871215744,0.95958472,173.34,173.14,21.15464574]
[1721871215948,0.95958472,173.33,173.15,65.0]
[1721871216158,0.95958472,173.38,173.16,1.15417259]
[1721871216466,29.79798472,173.38,173.15,66.15433278]
[1721871216665,29.79798472,173.38,173.17,1.15433278]
[1721871216666,5.7704,173.3,173.17,1.15433278]
[1721871216964,17.41,173.37,173.18,1.15422973]
[1721871216965,5.77,173.31,173.18,1.15422973]
[1721871217261,17.41,173.38,173.18,1.15422973]
[1721871217469,5.7679,173.38,173.18,21.15422973]
[1721871217763,0.7702475,173.44,173.23,21.4825]
[1721871217966,5.7665,173.42,173.24,41.1536089]
[1721871218168,5.7664,173.42,173.26,20.0]
[1721871218374,0.7702475,173.44,173.27,66.15343018]
[1721871218375,6.5361475,173.44,173.27,66.15343018]
[1721871218667,6.5359475,173.44,173.27,66.15343018]
[1721871219362,6.5359475,173.44,173.29,20.0]
[1721871219556,0.7702475,173.44,173.3,66.15331671]
[1721871219961,6.5359475,173.44,173.3,66.15331671]
[1721871220367,5.7667,173.41,173.29,1.15331966]
[1721871220562,0.95958472,173.41,173.24,1.15362234]
[1721871220863,1.72983222,173.44,173.24,1.15362234]
[1721871221060,1.72983222,173.44,173.24,21.15362234]
[1721871221061,0.7702475,173.44,173.24,21.15362234]
[1721871221269,0.7702475,173.44,173.25,20.0]
[1721871221462,6.5359475,173.44,173.27,20.0]
[1721871221664,5.7665,173.42,173.28,1.15343764]
[1721871221863,5.7665,173.42,173.24,20.0]
[1721871221864,0.95958472,173.42,173.25,1.15358621]
[1721871222055,0.7702475,173.44,173.25,46.15358621]
[1721871222056,0.95958472,173.43,173.25,46.15358621]
[1721871222260,0.7702475,173.44,173.25,1.15358621]
[1721871222457,5.7674,173.39,173.26,45.0]
[1721871222661,5.7675,173.39,173.23,21.4825]
[1721871222854,5.7675,173.39,173.24,1.15373552]
[1721871223262,5.7674,173.39,173.24,21.15373552]
[1721871223471,0.95958472,173.42,173.24,21.15373552]
[1721871223671,0.95958472,173.42,173.24,41.15373552]
[1721871223672,5.7664,173.42,173.24,41.15373552]
[1721871223867,0.7702475,173.44,173.25,45.0]
[1721871224070,5.7663,173.42,173.26,21.15342651]
[1721871224372,1.72983222,173.44,173.27,46.15342744]
[1721871224568,1.72983222,173.44,173.28,20.0]
[1721871224760,1.72983222,173.44,173.29,66.15343739]
[1721871224761,0.7702475,173.44,173.29,66.15343739]
[1721871225091,0.7702475,173.44,173.3,21.15318635]
[1721871225295,0.7702475,173.44,173.31,45.0]
[1721871225474,0.7702475,173.44,173.32,21.15311564]
[1721871225658,0.7702475,173.44,173.33,46.15311412]
[1721871225859,0.7702475,173.44,173.34,20.0]
[1721871226059,0.7702475,173.44,173.35,46.15304985]
[1721871226273,0.7702475,173.44,173.36,1.15305761]
[1721871226661,0.7702475,173.44,173.36,21.15305761]
[1721871226962,0.7702475,173.44,173.36,1.15311004]
[1721871227360,0.7702475,173.44,173.32,21.15314039]
[1721871227585,0.7702475,173.44,173.33,1.15338442]
[1721871229286,0.7702475,173.44,173.34,6.1673]
[1721871229472,0.7702475,173.44,173.35,21.15324431]
[1721871229672,0.7702475,173.44,173.34,6.1673]
[1721871230360,0.7702475,173.44,173.35,1.15328215]
[1721871230664,14.4063,173.54,173.34,6.1673]
[1721871230665,0.7702475,173.61,173.4,39.87]
[1721871230872,0.7702475,173.61,173.42,20.0]
[1721871231072,0.95958472,173.6,173.43,1.15242577]
[1721871231277,0.7702475,173.61,173.43,1.15242577]
[1721871231683,0.7702475,173.61,173.43,21.15242577]
[1721871231862,0.7702475,173.61,173.5,59.87]
[1721871232062,0.7702475,173.61,173.51,66.15181719]
[1721871232376,0.7702475,173.61,173.52,2.85331557]
[1721871232676,0.7702475,173.61,173.53,1.70137539]
[1721871233467,0.95958472,173.6,173.53,1.70137539]
[1721871234302,6.5303475,173.61,173.53,1.70137539]
[1721871234604,5.7621,173.55,173.53,1.70137539]
[1721871235081,0.95958472,173.59,173.53,1.70137539]
[1721871235082,6.72028472,173.59,173.53,1.70137539]
[1721871235383,51.72008472,173.6,173.53,1.70137539]
[1721871235685,5.7614,173.57,173.53,1.70137539]
[1721871236082,6.72048472,173.59,173.53,1.70137539]
[1721871236272,0.95958472,173.59,173.53,1.70137539]
[1721871236462,5.7623,173.54,173.53,1.70137539]
[1721871236663,17.45988472,173.59,173.53,1.70137539]
[1721871236890,45.0,173.58,173.53,1.70137539]
[1721871237061,0.95958472,173.57,173.53,1.70137539]
[1721871237479,5.7617,173.56,173.53,1.70137539]
[1721871237673,0.95958472,173.57,173.53,1.70137539]
[1721871237966,16.5003,173.59,173.53,1.70137539]
[1721871238173,5.762,173.55,173.53,1.70137539]
[1721871238371,0.95958472,173.54,173.53,1.70137539]
[1721871238586,0.95958472,173.58,173.53,1.70137539]
[1721871238793,0.95958472,173.57,173.53,1.70137539]
[1721871239172,5.7617,173.56,173.53,1.70137539]
[1721871239377,45.95958472,173.55,173.53,1.70137539]
[1721871239563,0.95958472,173.54,173.53,1.70137539]
[1721871239999,5.7634,173.51,173.38,1.15258847]
[1721871240177,0.95958472,173.5,173.39,1.70274913]
[1721871241399,0.7702475,173.61,173.47,20.0]
[1721871241597,0.7702475,173.61,173.48,1.70186575]
[1721871242104,0.7702475,173.61,173.49,1.15241916]
[1721871242474,0.7702475,173.61,173.5,1.70166957]
[1721871242773,0.7702475,173.61,173.51,1.15206437]
[1721871242991,0.7702475,173.61,173.52,2.85355065]
[1721871243193,0.7702475,173.61,173.53,1.70137539]
[1721871244127,15.1709475,173.61,173.53,1.70137539]
[1721871244444,17.41,173.57,173.4,7.35741038]
[1721871244596,17.41,173.5,173.41,1.70255274]
[1721871244932,5.7654,173.45,173.41,1.70255274]
[1721871245113,23.1754,173.45,173.41,1.70255274]
[1721871245310,17.41,173.43,173.27,6.6568]
[1721871245516,17.41,173.43,173.24,13.9629]
[1721871245517,23.1769,173.41,173.28,1.70383005]
[1721871245700,17.41,173.43,173.29,1.15374129]
[1721871246023,39.87,173.48,173.3,2.85723303]
[1721871246323,39.87,173.53,173.31,1.70353512]
[1721871246506,65.0,173.52,173.32,1.15332257]
[1721871246703,5.7641,173.49,173.33,2.85667919]
[1721871246909,0.1436747,173.71,173.64,20.0]
[1721871247110,0.1436747,173.71,173.69,39.87]
[1721871247312,0.7702475,173.78,173.7,2.85062924]
[1721871247497,0.7702475,173.78,173.71,22.85049368]
[1721871247697,0.7702475,173.78,173.72,66.69951457]
[1721871247919,20.7846,174.01,173.77,20.0]
[1721871248096,20.7846,174.01,173.73,1.15034722]
[1721871248097,20.7846,174.01,173.79,39.87]
[1721871248299,20.7846,174.01,173.8,1.69873228]
[1721871248300,39.87,173.91,173.8,1.69873228]
[1721871248625,5.7545,173.78,173.64,1.15092947]
[1721871248943,6.2079,173.84,173.65,1.70019966]
[1721871248944,17.41,173.82,173.65,1.70019966]
[1721871249097,6.2079,173.84,173.66,1.15146496]
[1721871249420,39.87,173.8,173.67,1.70000386]
[1721871249621,5.7558,173.74,173.67,1.70000386]
[1721871250294,5.7562,173.73,173.67,1.70000386]
[1721871250497,5.7562,173.73,173.52,73.8329]
[1721871250498,17.41,173.73,173.53,1.1517764]
[1721871250854,39.87,173.8,173.56,1.7010813]
[1721871250855,5.7558,173.74,173.56,1.7010813]
[1721871251130,5.7558,173.74,173.57,1.15170197]
[1721871251300,39.87,173.8,173.58,1.7008853]
[1721871251505,20.0,173.82,173.58,1.7008853]
[1721871251716,15.0841,173.71,173.58,1.7008853]
[1721871251924,5.7592,173.64,173.58,1.7008853]
[1721871252137,17.41,173.66,173.55,57.65043274]
[1721871252301,65.0,173.65,173.55,57.65043274]
[1721871252505,5.7616,173.57,173.55,57.65043274]
[1721871253102,65.0,173.65,173.55,57.65043274]
[1721871253501,20.0,173.64,173.55,57.65043274]
[1721871253825,65.0,173.63,173.55,57.65043274]
[1721871254136,17.41,173.62,173.55,57.65043274]
[1721871254433,17.41,173.59,173.55,57.65043274]
[1721871254638,5.7609,173.59,173.55,57.65043274]
[1721871254853,20.0,173.63,173.55,57.65043274]
[1721871255012,5.7616,173.56,173.55,57.65043274]
[1721871255405,23.1716,173.56,173.55,40.98383274]
[1721871255726,25.7616,173.56,173.55,40.98383274]
[1721871255928,70.7616,173.56,173.55,40.98383274]
[1721871256231,5.7611,173.58,173.55,40.98383274]
[1721871256533,5.7614,173.57,173.55,40.98383274]
[1721871257436,5.7614,173.57,173.55,24.31723274]
[1721871257804,39.87,173.63,173.55,24.31723274]
[1721871258107,5.76,173.62,173.55,24.31723274]
[1721871258318,17.41,173.67,173.55,24.31723274]
[1721871258710,5.99340601,173.67,173.55,24.31723274]
[1721871259239,5.7601,173.61,173.55,26.01841206]
[1721871259452,5.7616,173.57,173.55,26.01841206]
[1721871259610,5.7616,173.57,173.55,24.31723274]
[1721871259810,23.1716,173.57,173.55,24.31723274]
[1721871260247,20.0,173.56,173.55,24.31723274]
[1721871260444,37.41,173.56,173.55,24.31723274]
[1721871260740,82.41,173.56,173.55,24.31723274]
[1721871260928,5.7645,173.48,173.38,1.15278011]
[1721871261148,82.41,173.56,173.39,30.0]
[1721871261149,5.7637,173.5,173.39,30.0]
[1721871261525,5.7633,173.51,173.36,7.69141188]
[1721871261724,5.764,173.49,173.36,6.5382]
[1721871261940,82.41,173.56,173.36,6.5382]
[1721871262137,5.7648,173.47,173.35,0.7702475]
[1721871262534,5.7642,173.49,173.36,1.15331119]
[1721871262740,5.7642,173.49,173.35,0.7702475]
[1721871262741,5.7646,173.48,173.35,0.7702475]
[1721871263747,17.41,173.53,173.35,0.7702475]
[1721871263931,17.41,173.51,173.35,0.7702475]
[1721871264125,5.7658,173.44,173.35,0.7702475]
[1721871264728,71.6895,173.5,173.35,0.7702475]
[1721871264936,5.7664,173.42,173.35,0.7702475]
[1721871265134,5.7668,173.41,173.35,0.7702475]
[1721871266058,5.7655,173.45,173.35,0.7702475]
[1721871266345,17.41,173.49,173.35,0.7702475]
[1721871266526,82.41,173.48,173.35,0.7702475]
[1721871266735,96.8213,173.48,173.35,0.7702475]
[1721871267054,5.7663,173.42,173.35,0.7702475]
[1721871267264,65.0,173.48,173.35,0.7702475]
[1721871267732,5.7653,173.45,173.35,0.7702475]
[1721871268339,31.8204,173.49,173.35,0.7702475]
[1721871268629,5.7663,173.42,173.35,0.7702475]
[1721871268831,31.8204,173.49,173.35,0.7702475]
[1721871269133,5.7668,173.41,173.35,0.7702475]
[1721871269342,17.41,173.47,173.35,0.7702475]
[1721871269576,5.7671,173.4,173.35,0.7702475]
[1721871269872,5.7674,173.39,173.35,0.7702475]
[1721871270035,5.7669,173.41,173.35,0.7702475]
[1721871270229,5.767,173.4,173.35,0.7702475]
[1721871270425,31.8235,173.45,173.35,0.7702475]
[1721871270732,5.7682,173.37,173.35,0.7702475]
[1721871271245,65.0,173.44,173.35,0.7702475]
[1721871271450,5.7674,173.39,173.35,0.7702475]
[1721871271652,5.7675,173.39,173.35,0.7702475]
[1721871271832,5.768,173.37,173.35,0.7702475]
[1721871272032,5.7675,173.39,173.35,0.7702475]
[1721871272224,5.7666,173.41,173.35,0.7702475]
[1721871272430,65.0,173.44,173.35,0.7702475]
[1721871272431,20.0,173.44,173.35,0.7702475]
[1721871272635,5.7661,173.43,173.35,0.7702475]
[1721871273036,5.9938549,173.48,173.35,0.7702475]
[1721871273245,5.7648,173.47,173.35,0.7702475]
[1721871273463,5.7636,173.51,173.35,0.7702475]
[1721871273638,6.1388,173.53,173.35,0.7702475]
[1721871273846,12.12924481,173.53,173.35,0.7702475]
[1721871274341,17.41,173.5,173.35,0.7702475]
[1721871274545,5.7664,173.42,173.35,0.7702475]
[1721871274748,17.41,173.5,173.35,0.7702475]
[1721871275054,20.0,173.49,173.35,0.7702475]
[1721871275256,5.7646,173.48,173.35,0.7702475]
[1721871275454,20.0,173.49,173.35,0.7702475]
[1721871275955,20.0,173.49,173.36,1.15335382]
[1721871275956,5.7641,173.49,173.36,1.15335382]
[1721871276358,5.7644,173.48,173.36,1.15335382]
[1721871276555,29.53924481,173.53,173.36,1.15332079]
[1721871276855,5.7656,173.45,173.35,0.7702475]
[1721871277152,5.7665,173.42,173.35,0.7702475]
[1721871277361,23.1761,173.43,173.35,0.7702475]
[1721871277739,23.1764,173.42,173.35,0.7702475]
[1721871278461,5.7662,173.43,173.35,0.7702475]
[1721871278648,5.7655,173.45,173.35,0.7702475]
[1721871279459,17.41,173.52,173.37,21.3329]
[1721871279756,23.1731,173.52,173.38,21.1529787]
[1721871279964,23.1731,173.52,173.38,66.1529787]
[1721871280278,17.41,173.52,173.38,66.1529787]
[1721871280459,23.1739,173.5,173.38,76.1529787]
[1721871280766,5.7644,173.48,173.38,45.0]
[1721871280931,17.41,173.51,173.39,1.15317446]
[1721871281137,5.7647,173.47,173.38,45.0]
[1721871281344,5.765,173.46,173.37,21.3329]
[1721871281537,5.7654,173.45,173.37,21.3329]
[1721871281846,17.41,173.49,173.37,15.2378]
[1721871282367,17.41,173.43,173.37,15.2378]
[1721871282538,17.41,173.42,173.37,15.2378]
[1721871283260,17.41,173.42,173.35,0.7702475]
[1721871283261,5.7681,173.37,173.35,0.7702475]
[1721871283464,17.41,173.42,173.35,0.7702475]
[1721871283465,5.7672,173.4,173.35,0.7702475]
[1721871283762,5.7673,173.39,173.35,0.7702475]
[1721871284065,5.7672,173.4,173.35,0.7702475]
[1721871284251,17.41,173.41,173.35,0.7702475]
[1721871284454,5.7677,173.38,173.35,0.7702475]
[1721871284846,5.7682,173.37,173.35,0.7702475]
[1721871286362,17.41,173.38,173.35,0.7702475]
[1721871286660,17.41,173.36,173.35,0.7702475]
[1721871287040,82.41,173.36,173.35,0.7702475]
[1721871287241,82.41,173.36,173.35,4.75e-05]
[1721871288084,5.7719,173.26,173.18,0.7702475]
[1721871288245,5.772,173.25,173.18,0.7702475]